[Event "Live Chess"]
[Site "Chess.com"]
[Date "2023.05.20"]
[Round "-"]
[White "omisoc"]
[Black "Pablo_dmp"]
[Result "1-0"]
[WhiteElo "2163"]
[BlackElo "1884"]
[TimeControl "300"]
[EndTime "13:24:06 PDT"]
[Termination "omisoc won by resignation"]

1. Nf3 {[%clk 0:04:57.7]} 1... Nf6 {[%clk 0:04:58.5]} 2. b3 {[%clk 0:04:51.3]}
2... d5 {[%clk 0:04:53.9]} 3. e3 {[%clk 0:04:48.6]} 3... e6 {[%clk 0:04:48.1]}
4. Bb2 {[%clk 0:04:47.6]} 4... Be7 {[%clk 0:04:44.5]} 5. d4 {[%clk 0:04:45.3]}
5... b6 {[%clk 0:04:40.5]} 6. Be2 {[%clk 0:04:43.5]} 6... Ba6 {[%clk 0:04:37.7]}
7. Bxa6 {[%clk 0:04:41.1]} 7... Nxa6 {[%clk 0:04:37.6]} 8. O-O {[%clk
0:04:39.7]} 8... O-O {[%clk 0:04:35.8]} 9. Nbd2 {[%clk 0:04:37.1]} 9... c5
{[%clk 0:04:32.6]} 10. c4 {[%clk 0:04:33.8]} 10... Nb4 {[%clk 0:04:29.7]} 11.
Qe2 {[%clk 0:04:31.3]} 11... Rc8 {[%clk 0:04:19.7]} 12. Rfd1 {[%clk 0:04:29.4]}
12... Qc7 {[%clk 0:04:13.5]} 13. a3 {[%clk 0:04:24.5]} 13... Nc6 {[%clk
0:04:10.6]} 14. cxd5 {[%clk 0:04:12.5]} 14... exd5 {[%clk 0:04:08.9]} 15. Rac1
{[%clk 0:04:10.2]} 15... Rfd8 {[%clk 0:03:54.6]} 16. Qa6 {[%clk 0:04:03.5]}
16... Qb8 {[%clk 0:03:37.8]} 17. dxc5 {[%clk 0:03:51.2]} 17... bxc5 {[%clk
0:03:37.7]} 18. b4 {[%clk 0:03:50.1]} 18... cxb4 {[%clk 0:03:32.5]} 19. Rxc6
{[%clk 0:03:47.9]} 19... bxa3 {[%clk 0:03:24.3]} 20. Bd4 {[%clk 0:03:41.5]}
20... Rxc6 {[%clk 0:03:15.2]} 21. Qxc6 {[%clk 0:03:39]} 21... Rc8 {[%clk
0:03:11.3]} 22. Qa4 {[%clk 0:03:32]} 22... Qc7 {[%clk 0:02:56.3]} 23. h3 {[%clk
0:03:10.1]} 23... h5 {[%clk 0:02:37.9]} 24. Ne1 {[%clk 0:02:57]} 24... Nd7
{[%clk 0:02:18.3]} 25. Nb1 {[%clk 0:02:52.2]} 25... Nb6 {[%clk 0:02:04]} 26.
Bxb6 {[%clk 0:02:42.4]} 26... axb6 {[%clk 0:02:03.9]} 27. Nxa3 {[%clk
0:02:40.7]} 27... Qc3 {[%clk 0:01:53.2]} 28. Nb5 {[%clk 0:02:31.4]} 28... Qf6
{[%clk 0:01:48.3]} 29. Nd4 {[%clk 0:02:22.6]} 29... Bc5 {[%clk 0:01:46.9]} 30.
Nef3 {[%clk 0:02:19.8]} 30... Re8 {[%clk 0:01:43]} 31. Qxe8+ {[%clk 0:02:15.9]}
1-0

[Event "Live Chess"]
[Site "Chess.com"]
[Date "2023.05.20"]
[Round "-"]
[White "Hoogleboogle"]
[Black "Ian-Morley"]
[Result "1-0"]
[WhiteElo "1395"]
[BlackElo "971"]
[TimeControl "300"]
[EndTime "13:24:10 PDT"]
[Termination "Hoogleboogle won by resignation"]

1. d4 {[%clk 0:04:53.7]} 1... e5 {[%clk 0:04:58.4]} 2. d5 {[%clk 0:04:49.9]}
2... Nc6 {[%clk 0:04:57.9]} 3. c4 {[%clk 0:04:48.6]} 3... Nd4 {[%clk 0:04:55.1]}
4. e3 {[%clk 0:04:42.2]} 4... Nf5 {[%clk 0:03:32.9]} 5. Bd3 {[%clk 0:04:31.8]}
5... Bb4+ {[%clk 0:03:16.4]} 6. Bd2 {[%clk 0:04:27.8]} 6... Bxd2+ {[%clk
0:03:15.3]} 7. Nxd2 {[%clk 0:04:23.5]} 7... Nd6 {[%clk 0:03:14.4]} 8. Ne4 {[%clk
0:04:17]} 8... Nxe4 {[%clk 0:03:12.5]} 9. Bxe4 {[%clk 0:04:15.2]} 9... d6 {[%clk
0:03:12.2]} 10. Nf3 {[%clk 0:04:07.6]} 10... Bg4 {[%clk 0:03:07.4]} 11. h3
{[%clk 0:04:05.5]} 11... Bxf3 {[%clk 0:02:51.9]} 12. Qxf3 {[%clk 0:04:03.3]}
12... Qf6 {[%clk 0:02:51.2]} 13. Qg4 {[%clk 0:03:48.1]} 13... Qg6 {[%clk
0:02:37.5]} 14. Qxg6 {[%clk 0:03:44.1]} 14... fxg6 {[%clk 0:02:36.5]} 15. f4
{[%clk 0:03:39.9]} 15... Nf6 {[%clk 0:02:31.1]} 16. Bc2 {[%clk 0:03:33.2]} 16...
exf4 {[%clk 0:02:28.7]} 17. exf4 {[%clk 0:03:31.7]} 17... O-O {[%clk 0:02:28.2]}
18. O-O-O {[%clk 0:03:29.7]} 18... Rae8 {[%clk 0:02:25.5]} 19. Rhe1 {[%clk
0:03:27.7]} 19... Rxe1 {[%clk 0:02:19.7]} 20. Rxe1 {[%clk 0:03:26]} 20... Re8
{[%clk 0:02:19.2]} 21. Rxe8+ {[%clk 0:03:24]} 21... Nxe8 {[%clk 0:02:18.8]} 22.
f5 {[%clk 0:03:21.8]} 22... Nf6 {[%clk 0:02:17.7]} 23. fxg6 {[%clk 0:03:18.3]}
23... hxg6 {[%clk 0:02:16.7]} 24. Bxg6 {[%clk 0:03:12.9]} 24... c6 {[%clk
0:01:45]} 25. dxc6 {[%clk 0:03:08.7]} 25... bxc6 {[%clk 0:01:43.8]} 26. Kd2
{[%clk 0:03:06.5]} 26... d5 {[%clk 0:01:35.1]} 27. c5 {[%clk 0:03:00.9]} 27...
Ne4+ {[%clk 0:01:31.1]} 28. Bxe4 {[%clk 0:02:59]} 28... dxe4 {[%clk 0:01:29.8]}
29. Ke3 {[%clk 0:02:58.3]} 29... Kf7 {[%clk 0:01:29.3]} 30. Kxe4 {[%clk
0:02:57.5]} 30... Ke6 {[%clk 0:01:29]} 31. g4 {[%clk 0:02:55.6]} 31... g6 {[%clk
0:01:08.1]} 32. h4 {[%clk 0:02:53.7]} 32... a5 {[%clk 0:01:02.8]} 33. a4 {[%clk
0:02:51.5]} 33... g5 {[%clk 0:00:57.9]} 34. h5 {[%clk 0:02:48.9]} 34... Kf7
{[%clk 0:00:56.6]} 35. Ke5 {[%clk 0:02:43.7]} 35... Kg7 {[%clk 0:00:55.6]} 36.
Kd6 {[%clk 0:02:40.9]} 1-0

[Event "Live Chess"]
[Site "Chess.com"]
[Date "2023.05.20"]
[Round "-"]
[White "Conradical12"]
[Black "manthanit"]
[Result "1-0"]
[WhiteElo "1580"]
[BlackElo "1008"]
[TimeControl "300"]
[EndTime "13:24:13 PDT"]
[Termination "Conradical12 won on time"]

1. e4 {[%clk 0:04:58.8]} 1... e6 {[%clk 0:04:59.3]} 2. d4 {[%clk 0:04:57.3]}
2... d5 {[%clk 0:04:58.8]} 3. exd5 {[%clk 0:04:56.7]} 3... exd5 {[%clk
0:04:58.5]} 4. Bf4 {[%clk 0:04:55.1]} 4... a6 {[%clk 0:04:56.3]} 5. Nf3 {[%clk
0:04:54.6]} 5... c5 {[%clk 0:04:55.5]} 6. c4 {[%clk 0:04:54]} 6... Be6 {[%clk
0:04:47.2]} 7. Qb3 {[%clk 0:04:50.2]} 7... Nf6 {[%clk 0:04:46]} 8. Nbd2 {[%clk
0:04:44.8]} 8... dxc4 {[%clk 0:04:44.5]} 9. Bxc4 {[%clk 0:04:42.8]} 9... Bxc4
{[%clk 0:04:42.2]} 10. Qxc4 {[%clk 0:04:40.8]} 10... b5 {[%clk 0:04:41.5]} 11.
Qe2+ {[%clk 0:04:37.2]} 11... Be7 {[%clk 0:04:39.1]} 12. O-O-O {[%clk 0:04:36]}
12... O-O {[%clk 0:04:36]} 13. h4 {[%clk 0:04:32.3]} 13... cxd4 {[%clk
0:04:31.7]} 14. Kb1 {[%clk 0:04:30.9]} 14... Bc5 {[%clk 0:03:40.8]} 15. h5
{[%clk 0:04:27.1]} 15... Ng4 {[%clk 0:03:39.5]} 16. h6 {[%clk 0:04:22.2]} 16...
d3 {[%clk 0:03:34]} 17. Qe4 {[%clk 0:04:19.1]} 17... Nxf2 {[%clk 0:03:32.9]} 18.
Qxa8 {[%clk 0:04:17.7]} 18... Nxd1 {[%clk 0:03:23.1]} 19. hxg7 {[%clk
0:04:16.5]} 19... Kxg7 {[%clk 0:03:21.7]} 20. Rxd1 {[%clk 0:04:10.2]} 20... Kg8
{[%clk 0:03:04.4]} 21. Bh6 {[%clk 0:03:57.5]} 21... Re8 {[%clk 0:02:57.2]} 22.
Ne4 {[%clk 0:03:53.9]} 22... Bb4 {[%clk 0:02:16.9]} 23. a3 {[%clk 0:03:28.5]}
23... Ba5 {[%clk 0:02:09.2]} 24. Nd4 {[%clk 0:03:15.8]} 24... Qxd4 {[%clk
0:01:49.3]} 25. Qb7 {[%clk 0:03:03.9]} 25... d2 {[%clk 0:01:29.5]} 26. Ng5
{[%clk 0:02:24.8]} 26... Qd3+ {[%clk 0:01:02.7]} 27. Ka1 {[%clk 0:02:21.2]}
27... Qg6 {[%clk 0:00:40.3]} 28. Qd5 {[%clk 0:01:46.6]} 28... Rd8 {[%clk
0:00:20]} 29. Qe5 {[%clk 0:01:38.9]} 29... Nc6 {[%clk 0:00:12.6]} 30. Qf4 {[%clk
0:00:54.1]} 30... Ne7 {[%clk 0:00:08.9]} 31. Qh4 {[%clk 0:00:51.1]} 31... Nf5
{[%clk 0:00:07.3]} 32. Qg4 {[%clk 0:00:47]} 32... Nxh6 {[%clk 0:00:06]} 33. Qh4
{[%clk 0:00:42.2]} 33... Nf5 {[%clk 0:00:04.8]} 34. Qe4 {[%clk 0:00:35.9]} 34...
Rd4 {[%clk 0:00:00.3]} 35. Qe8+ {[%clk 0:00:32.2]} 1-0

[Event "Live Chess"]
[Site "Chess.com"]
[Date "2023.05.20"]
[Round "-"]
[White "jk0110"]
[Black "Iggle-Piggle"]
[Result "1-0"]
[WhiteElo "1091"]
[BlackElo "1219"]
[TimeControl "300"]
[EndTime "13:24:22 PDT"]
[Termination "jk0110 won by checkmate"]

1. e4 {[%clk 0:04:58]} 1... e6 {[%clk 0:04:58.2]} 2. d4 {[%clk 0:04:56]} 2... d5
{[%clk 0:04:55.5]} 3. Nc3 {[%clk 0:04:53.3]} 3... Nf6 {[%clk 0:04:52]} 4. e5
{[%clk 0:04:46]} 4... Nfd7 {[%clk 0:04:49.5]} 5. Nf3 {[%clk 0:04:41.1]} 5... c5
{[%clk 0:04:47]} 6. dxc5 {[%clk 0:04:37.5]} 6... Bxc5 {[%clk 0:04:43.8]} 7. Bd3
{[%clk 0:04:32.2]} 7... a6 {[%clk 0:04:40.8]} 8. Na4 {[%clk 0:04:14.4]} 8... Ba7
{[%clk 0:04:33]} 9. Qe2 {[%clk 0:04:04.5]} 9... O-O {[%clk 0:04:16.9]} 10. Bxh7+
{[%clk 0:03:50.4]} 10... Kxh7 {[%clk 0:04:12]} 11. Ng5+ {[%clk 0:03:48.8]} 11...
Kg6 {[%clk 0:04:04.8]} 12. h4 {[%clk 0:03:39.7]} 12... Rh8 {[%clk 0:03:46.2]}
13. h5+ {[%clk 0:03:26.5]} 13... Kf5 {[%clk 0:03:33.4]} 14. Qf3+ {[%clk
0:03:18.8]} 14... Kxe5 {[%clk 0:03:30.7]} 15. Qf4# {[%clk 0:03:12.6]} 1-0

[Event "Live Chess"]
[Site "Chess.com"]
[Date "2023.05.20"]
[Round "-"]
[White "YrrriKharkiv"]
[Black "Woodpusher500"]
[Result "1-0"]
[WhiteElo "2037"]
[BlackElo "1252"]
[TimeControl "300"]
[EndTime "13:24:26 PDT"]
[Termination "YrrriKharkiv won on time"]

1. d4 {[%clk 0:04:49.7]} 1... c5 {[%clk 0:04:56.9]} 2. Nf3 {[%clk 0:04:49.3]}
2... cxd4 {[%clk 0:04:53]} 3. e3 {[%clk 0:04:47]} 3... dxe3 {[%clk 0:04:47.2]}
4. Bxe3 {[%clk 0:04:46.6]} 4... Nc6 {[%clk 0:04:39.6]} 5. c4 {[%clk 0:04:45.9]}
5... Nf6 {[%clk 0:04:31.5]} 6. Nc3 {[%clk 0:04:44.2]} 6... e6 {[%clk 0:04:24.8]}
7. h3 {[%clk 0:04:27.8]} 7... Bb4 {[%clk 0:04:22.2]} 8. Bd2 {[%clk 0:04:25.6]}
8... O-O {[%clk 0:04:08.9]} 9. Be2 {[%clk 0:04:15.7]} 9... d5 {[%clk 0:03:49.4]}
10. O-O {[%clk 0:04:06.4]} 10... b6 {[%clk 0:03:29.2]} 11. cxd5 {[%clk
0:03:56.2]} 11... Nxd5 {[%clk 0:03:23.8]} 12. Qb3 {[%clk 0:03:09.6]} 12... Bxc3
{[%clk 0:03:04.3]} 13. bxc3 {[%clk 0:03:03.6]} 13... Bb7 {[%clk 0:02:57.4]} 14.
Rfd1 {[%clk 0:02:59.4]} 14... Qf6 {[%clk 0:02:36.5]} 15. Rac1 {[%clk 0:02:27.1]}
15... Rad8 {[%clk 0:02:21.6]} 16. Bg5 {[%clk 0:02:20.7]} 16... Qg6 {[%clk
0:02:13.9]} 17. Bxd8 {[%clk 0:02:15.7]} 17... Rxd8 {[%clk 0:02:07.3]} 18. Qc2
{[%clk 0:01:57.7]} 18... Qf6 {[%clk 0:01:52.3]} 19. c4 {[%clk 0:01:49.6]} 19...
Nf4 {[%clk 0:01:28.3]} 20. Rxd8+ {[%clk 0:01:47.4]} 20... Nxd8 {[%clk
0:01:26.1]} 21. Qd2 {[%clk 0:01:34.8]} 21... Ng6 {[%clk 0:01:04.5]} 22. c5
{[%clk 0:01:16.1]} 22... Nf4 {[%clk 0:00:45.3]} 23. cxb6 {[%clk 0:01:06.7]}
23... axb6 {[%clk 0:00:42.8]} 24. Rd1 {[%clk 0:00:59.1]} 24... Nc6 {[%clk
0:00:33.1]} 25. Bb5 {[%clk 0:00:40.2]} 25... h6 {[%clk 0:00:20.2]} 26. Bxc6
{[%clk 0:00:34.6]} 26... Bxc6 {[%clk 0:00:18.3]} 27. Qd8+ {[%clk 0:00:33.9]}
27... Kh7 {[%clk 0:00:17]} 28. Qxf6 {[%clk 0:00:32.4]} 28... gxf6 {[%clk
0:00:15.2]} 29. Nd4 {[%clk 0:00:31.3]} 29... Bxg2 {[%clk 0:00:11.2]} 30. Rb1
{[%clk 0:00:22.6]} 30... Bxh3 {[%clk 0:00:07.3]} 31. Rxb6 {[%clk 0:00:20.7]}
31... Bf5 {[%clk 0:00:02.6]} 32. Nxf5 {[%clk 0:00:19.3]} 32... exf5 {[%clk
0:00:00.8]} 33. a4 {[%clk 0:00:17.3]} 1-0

[Event "Live Chess"]
[Site "Chess.com"]
[Date "2023.05.20"]
[Round "-"]
[White "Fazer180"]
[Black "Enhard"]
[Result "1-0"]
[WhiteElo "1750"]
[BlackElo "1465"]
[TimeControl "300"]
[EndTime "13:24:28 PDT"]
[Termination "Fazer180 won by resignation"]

1. e4 {[%clk 0:04:58.8]} 1... c6 {[%clk 0:04:58.6]} 2. d4 {[%clk 0:04:57.1]}
2... d5 {[%clk 0:04:57.9]} 3. Nc3 {[%clk 0:04:56.7]} 3... dxe4 {[%clk
0:04:56.8]} 4. Nxe4 {[%clk 0:04:56.6]} 4... Bf5 {[%clk 0:04:56.3]} 5. Ng3 {[%clk
0:04:55.5]} 5... Bg6 {[%clk 0:04:55.5]} 6. h4 {[%clk 0:04:55.1]} 6... h6 {[%clk
0:04:54.6]} 7. h5 {[%clk 0:04:54.7]} 7... Bh7 {[%clk 0:04:53.7]} 8. Bd3 {[%clk
0:04:54.5]} 8... Bxd3 {[%clk 0:04:52.5]} 9. Qxd3 {[%clk 0:04:54.4]} 9... Nd7
{[%clk 0:04:50.3]} 10. Nf3 {[%clk 0:04:52.2]} 10... Ngf6 {[%clk 0:04:48.6]} 11.
c4 {[%clk 0:04:47.9]} 11... e6 {[%clk 0:04:47.6]} 12. O-O {[%clk 0:04:42.2]}
12... Be7 {[%clk 0:04:44.3]} 13. Bf4 {[%clk 0:04:33.4]} 13... a6 {[%clk
0:04:31.3]} 14. Qb3 {[%clk 0:04:30.4]} 14... b5 {[%clk 0:04:27.8]} 15. Rac1
{[%clk 0:04:22.8]} 15... O-O {[%clk 0:04:12]} 16. a4 {[%clk 0:04:05.9]} 16...
Nb6 {[%clk 0:04:01.7]} 17. axb5 {[%clk 0:04:01.2]} 17... axb5 {[%clk 0:03:54.5]}
18. cxb5 {[%clk 0:03:59.6]} 18... cxb5 {[%clk 0:03:53.6]} 19. Qxb5 {[%clk
0:03:53.1]} 19... Nbd5 {[%clk 0:03:52.6]} 20. Be5 {[%clk 0:03:45.4]} 20... Bd6
{[%clk 0:03:44.2]} 21. Bxd6 {[%clk 0:03:33.6]} 21... Qxd6 {[%clk 0:03:42.1]} 22.
Rc6 {[%clk 0:03:23.9]} 22... Qb4 {[%clk 0:03:24.5]} 23. Qxb4 {[%clk 0:03:12.7]}
23... Nxb4 {[%clk 0:03:22.8]} 24. Rc4 {[%clk 0:03:08.3]} 24... Nbd5 {[%clk
0:03:13.6]} 25. Rfc1 {[%clk 0:02:51.4]} 25... Rab8 {[%clk 0:03:11.3]} 26. Rb1
{[%clk 0:02:40.2]} 26... Rb3 {[%clk 0:03:06.4]} 27. Nd2 {[%clk 0:02:35]} 27...
Rb5 {[%clk 0:02:44.2]} 28. Nde4 {[%clk 0:02:23.4]} 28... Nxe4 {[%clk 0:02:39.2]}
29. Nxe4 {[%clk 0:02:23.3]} 29... Rfb8 {[%clk 0:02:38.4]} 30. Rc2 {[%clk
0:02:00.4]} 30... Rb4 {[%clk 0:02:29.6]} 31. Rd2 {[%clk 0:01:54.7]} 31... Rb3
{[%clk 0:02:19.2]} 32. Nc5 {[%clk 0:01:50.1]} 32... R3b5 {[%clk 0:02:14.2]} 33.
g3 {[%clk 0:01:41.3]} 33... Kh7 {[%clk 0:02:07.8]} 34. Kg2 {[%clk 0:01:37]}
34... g6 {[%clk 0:02:06.3]} 35. hxg6+ {[%clk 0:01:34.6]} 35... Kxg6 {[%clk
0:02:05.3]} 36. Nd7 {[%clk 0:01:32.1]} 36... R8b7 {[%clk 0:01:59.9]} 37. Ne5+
{[%clk 0:01:31.1]} 37... Kg7 {[%clk 0:01:53.1]} 38. Kf3 {[%clk 0:01:29.9]} 38...
Rb3+ {[%clk 0:01:50.8]} 39. Rd3 {[%clk 0:01:28.6]} 39... Rxb2 {[%clk 0:01:48.2]}
40. Rxb2 {[%clk 0:01:23.7]} 40... Rxb2 {[%clk 0:01:46]} 41. Ra3 {[%clk
0:01:20.9]} 41... Rb7 {[%clk 0:01:43.5]} 42. Ra6 {[%clk 0:01:14.6]} 42... Ne7
{[%clk 0:01:29.4]} 43. Nc6 {[%clk 0:01:07.6]} 43... Nf5 {[%clk 0:01:23.9]} 44.
Ke4 {[%clk 0:01:03.3]} 44... Rb4 {[%clk 0:01:09.9]} 45. Ra7 {[%clk 0:00:55]}
45... Rc4 {[%clk 0:00:45.9]} 46. Ra6 {[%clk 0:00:50.6]} 46... Nd6+ {[%clk
0:00:29.9]} 47. Kd3 {[%clk 0:00:48.8]} 47... Rc1 {[%clk 0:00:23.9]} 48. Kd2
{[%clk 0:00:44.7]} 48... Rf1 {[%clk 0:00:23]} 49. Ke2 {[%clk 0:00:43.7]} 49...
Rb1 {[%clk 0:00:21.3]} 50. Ra7 {[%clk 0:00:37.7]} 50... Nf5 {[%clk 0:00:19.5]}
51. Kd3 {[%clk 0:00:31.4]} 51... Rd1+ {[%clk 0:00:17.8]} 52. Ke4 {[%clk
0:00:30.1]} 52... Rf1 {[%clk 0:00:16.3]} 53. Kf3 {[%clk 0:00:28.4]} 53... Nxd4+
{[%clk 0:00:14.4]} 54. Nxd4 {[%clk 0:00:27.1]} 1-0

[Event "Live Chess"]
[Site "Chess.com"]
[Date "2023.05.20"]
[Round "-"]
[White "LL220284LL"]
[Black "KeithArkell"]
[Result "1/2-1/2"]
[WhiteElo "2397"]
[BlackElo "2609"]
[TimeControl "300"]
[EndTime "13:24:34 PDT"]
[Termination "Game drawn - insufficient material"]

1. e4 {[%clk 0:04:58.4]} 1... c6 {[%clk 0:04:59.2]} 2. Nf3 {[%clk 0:04:55.6]}
2... d5 {[%clk 0:04:58.4]} 3. d3 {[%clk 0:04:55.1]} 3... Bg4 {[%clk 0:04:57.5]}
4. Be2 {[%clk 0:04:49.2]} 4... Nd7 {[%clk 0:04:54.5]} 5. O-O {[%clk 0:04:46.4]}
5... Ngf6 {[%clk 0:04:50.7]} 6. Nbd2 {[%clk 0:04:41.9]} 6... e6 {[%clk
0:04:47.2]} 7. c3 {[%clk 0:04:40.5]} 7... Be7 {[%clk 0:04:38.7]} 8. Re1 {[%clk
0:04:38.7]} 8... O-O {[%clk 0:04:37.4]} 9. h3 {[%clk 0:04:35.9]} 9... Bxf3
{[%clk 0:04:36.5]} 10. Bxf3 {[%clk 0:04:35.3]} 10... Qc7 {[%clk 0:04:33.5]} 11.
exd5 {[%clk 0:04:33.4]} 11... cxd5 {[%clk 0:04:32.4]} 12. d4 {[%clk 0:04:32.6]}
12... Rfe8 {[%clk 0:04:31.7]} 13. Nf1 {[%clk 0:04:31.4]} 13... Bd6 {[%clk
0:04:31]} 14. g4 {[%clk 0:04:29]} 14... Bf4 {[%clk 0:04:30]} 15. g5 {[%clk
0:04:25.9]} 15... Bxc1 {[%clk 0:04:28.1]} 16. Qxc1 {[%clk 0:04:19.8]} 16... Ne4
{[%clk 0:04:25.6]} 17. Bxe4 {[%clk 0:04:16]} 17... dxe4 {[%clk 0:04:25]} 18. Ng3
{[%clk 0:04:08.2]} 18... e5 {[%clk 0:04:21.2]} 19. Rxe4 {[%clk 0:03:59.6]} 19...
exd4 {[%clk 0:04:19.5]} 20. Rxd4 {[%clk 0:03:59.5]} 20... Ne5 {[%clk 0:04:17.2]}
21. Qf4 {[%clk 0:03:53.2]} 21... Qc6 {[%clk 0:04:13.1]} 22. Kf1 {[%clk
0:03:39.7]} 22... Nf3 {[%clk 0:03:47.5]} 23. Rd6 {[%clk 0:03:30.2]} 23... Qc7
{[%clk 0:03:38]} 24. Rad1 {[%clk 0:03:24.2]} 24... Ne5 {[%clk 0:03:26.8]} 25.
Nf5 {[%clk 0:03:00.9]} 25... Re6 {[%clk 0:03:09.1]} 26. Rxe6 {[%clk 0:02:34.8]}
26... fxe6 {[%clk 0:03:07.5]} 27. Nd4 {[%clk 0:02:34.2]} 27... Qc4+ {[%clk
0:02:56.6]} 28. Kg1 {[%clk 0:02:27.9]} 28... Ng6 {[%clk 0:02:52.9]} 29. Qe3
{[%clk 0:02:18.1]} 29... e5 {[%clk 0:02:49.5]} 30. Nb3 {[%clk 0:02:09.4]} 30...
Rf8 {[%clk 0:02:47.2]} 31. Rd7 {[%clk 0:01:52.8]} 31... b6 {[%clk 0:02:36.9]}
32. Qd3 {[%clk 0:01:47.2]} 32... Qf4 {[%clk 0:02:33.2]} 33. Qe3 {[%clk
0:01:39.5]} 33... Qf5 {[%clk 0:02:30.3]} 34. Rd5 {[%clk 0:01:29.7]} 34... Nf4
{[%clk 0:02:20.2]} 35. Rxe5 {[%clk 0:01:23.2]} 35... Nxh3+ {[%clk 0:02:19.3]}
36. Kh2 {[%clk 0:01:12.5]} 36... Nxf2 {[%clk 0:01:56.9]} 37. Rxf5 {[%clk
0:01:03.8]} 37... Ng4+ {[%clk 0:01:55.7]} 38. Kg3 {[%clk 0:01:02.9]} 38... Nxe3
{[%clk 0:01:55.6]} 39. Rxf8+ {[%clk 0:01:02.1]} 39... Kxf8 {[%clk 0:01:55.1]}
40. Nc1 {[%clk 0:00:56.4]} 40... Kf7 {[%clk 0:01:50.8]} 41. Kf3 {[%clk
0:00:54.1]} 41... Nc4 {[%clk 0:01:37.6]} 42. b3 {[%clk 0:00:52.1]} 42... Nd6
{[%clk 0:01:31.9]} 43. Nd3 {[%clk 0:00:50.8]} 43... Kg6 {[%clk 0:01:31.2]} 44.
Kf4 {[%clk 0:00:49.8]} 44... Nf7 {[%clk 0:01:28.9]} 45. c4 {[%clk 0:00:43.8]}
45... Nxg5 {[%clk 0:01:27.7]} 46. Ne5+ {[%clk 0:00:42.8]} 46... Kh5 {[%clk
0:01:27.1]} 47. Nc6 {[%clk 0:00:40.9]} 47... a5 {[%clk 0:01:23.6]} 48. Ne5
{[%clk 0:00:35.8]} 48... Ne6+ {[%clk 0:01:21.2]} 49. Kg3 {[%clk 0:00:34.8]}
49... Nc5 {[%clk 0:01:17.6]} 50. Nc6 {[%clk 0:00:27.6]} 50... Kg5 {[%clk
0:01:11]} 51. Nd4 {[%clk 0:00:25.2]} 51... h5 {[%clk 0:01:07.8]} 52. a3 {[%clk
0:00:24.6]} 52... Kf6 {[%clk 0:01:03.6]} 53. b4 {[%clk 0:00:23.6]} 53... axb4
{[%clk 0:01:03.3]} 54. axb4 {[%clk 0:00:23.5]} 54... Ne6 {[%clk 0:01:00]} 55.
Ne2 {[%clk 0:00:19.5]} 55... g5 {[%clk 0:00:58.9]} 56. Nc3 {[%clk 0:00:18.4]}
56... h4+ {[%clk 0:00:56.7]} 57. Kg4 {[%clk 0:00:17.6]} 57... Ke5 {[%clk
0:00:55.7]} 58. Nd1 {[%clk 0:00:15.3]} 58... Kd4 {[%clk 0:00:54.2]} 59. c5
{[%clk 0:00:15]} 59... bxc5 {[%clk 0:00:53.4]} 60. bxc5 {[%clk 0:00:14.9]} 60...
Kxc5 {[%clk 0:00:50.5]} 61. Ne3 {[%clk 0:00:14.5]} 61... Kd4 {[%clk 0:00:48.9]}
62. Nf5+ {[%clk 0:00:14]} 62... Ke5 {[%clk 0:00:44.5]} 63. Nxh4 {[%clk
0:00:13.9]} 63... Nd4 {[%clk 0:00:30.6]} 64. Kxg5 {[%clk 0:00:12.6]} 1/2-1/2

[Event "Live Chess"]
[Site "Chess.com"]
[Date "2023.05.20"]
[Round "-"]
[White "Jonmill"]
[Black "Long1968"]
[Result "1-0"]
[WhiteElo "1246"]
[BlackElo "1090"]
[TimeControl "300"]
[EndTime "13:24:38 PDT"]
[Termination "Jonmill won on time"]

1. e4 {[%clk 0:04:59]} 1... e6 {[%clk 0:04:56.8]} 2. Nc3 {[%clk 0:04:52.6]} 2...
b6 {[%clk 0:04:52.4]} 3. d4 {[%clk 0:04:48.4]} 3... Bb7 {[%clk 0:04:50.1]} 4. f4
{[%clk 0:04:43.9]} 4... c5 {[%clk 0:04:47.2]} 5. Nf3 {[%clk 0:04:38.1]} 5... d5
{[%clk 0:04:40.7]} 6. exd5 {[%clk 0:04:28]} 6... exd5 {[%clk 0:04:35]} 7. Bb5+
{[%clk 0:04:25.8]} 7... Bc6 {[%clk 0:04:20.8]} 8. Qe2+ {[%clk 0:03:58.1]} 8...
Be7 {[%clk 0:04:14]} 9. Ne5 {[%clk 0:03:56.6]} 9... Bxb5 {[%clk 0:03:53.1]} 10.
Nxb5 {[%clk 0:03:54.7]} 10... a6 {[%clk 0:03:37.7]} 11. Qh5 {[%clk 0:03:33.5]}
11... g6 {[%clk 0:03:28.6]} 12. Nxg6 {[%clk 0:03:28.6]} 12... fxg6 {[%clk
0:03:24]} 13. Qe5 {[%clk 0:03:27.6]} 13... Nf6 {[%clk 0:03:15.5]} 14. Nc7+
{[%clk 0:03:24.1]} 14... Kf7 {[%clk 0:03:01.4]} 15. Qe6+ {[%clk 0:03:01]} 15...
Kg7 {[%clk 0:02:44]} 16. Nxa8 {[%clk 0:02:52.2]} 16... Bd6 {[%clk 0:02:31.4]}
17. O-O {[%clk 0:02:31]} 17... Re8 {[%clk 0:02:23.2]} 18. Qh3 {[%clk 0:02:29.3]}
18... Nc6 {[%clk 0:01:47.4]} 19. Nxb6 {[%clk 0:02:25.8]} 19... Qxb6 {[%clk
0:01:42.8]} 20. f5 {[%clk 0:02:23.3]} 20... cxd4 {[%clk 0:00:40.4]} 21. Bh6+
{[%clk 0:02:21.6]} 21... Kf7 {[%clk 0:00:28]} 22. fxg6+ {[%clk 0:02:15.4]} 22...
hxg6 {[%clk 0:00:17.8]} 23. Qd7+ {[%clk 0:02:09.2]} 23... Ne7 {[%clk 0:00:10.9]}
24. Bg5 {[%clk 0:01:48.7]} 1-0